{"text_format":"1","workbook":"xlsx","n_sheets":2,"sheets":["Данные по закупкам","Даты закупок"],"not_rendered":{"charts":0,"images":0,"macros":1,"external_links":0,"defined_names":1,"comments":0,"pivot_tables":0},"unopened":[],"bounds":{"document_bytes":16777216,"sheet_cells":100000,"rows_first":2000,"rows_last":500,"rows_between":2000,"halvings":0,"cell_chars":16384,"cell_head_chars":4096},"cells_cut":0,"cells_raw":0,"read":"whole","date_system":"1900"}

{"sheet":"Данные по закупкам","index":0,"n_rows":33,"n_cols":13,"rows_kept":33,"cut":false,"hidden":false,"merged":[]}
[]
[]
[null,"Данные по тендерам на Icetrade"]
[]
[]
[null,"№ процедуры закупки","Название организации заказчика","Наименование объекта","Стоимость","Дата подачи документов","Дата подачи заявки","Должность контактного лица","Фамилия контактного лица","Номер телефона","Номер факса","Электронная почта","Примечания"]
[{"$f":"IF(TODAY()-таблКонтактныеДанныеКлиентов8[[#This Row],[Дата подачи документов]]=1,\"Скрыть\",таблКонтактныеДанныеКлиентов8[[#This Row],[Дата подачи документов]])","v":"Скрыть"},"234642","РУП Интурист","Строительство объекта «Капитальный ремонт фасадов  здания по ул. Белецкого, 13 в г. Мосты»","1 569 616 700 ","30.3.15","30.04.2015"]
[{"$f":"IF(TODAY()-таблКонтактныеДанныеКлиентов8[[#This Row],[Дата подачи документов]]=1,\"Скрыть\",таблКонтактныеДанныеКлиентов8[[#This Row],[Дата подачи документов]])","v":"19.04.2016"},"234698","ЖКХ Люблинского р-на","Реконструкция цеха","3 987 327 000","19.04.2016","29.04.2016"]
[{"$f":"IF(TODAY()-таблКонтактныеДанныеКлиентов8[[#This Row],[Дата подачи документов]]=1,\"Скрыть\",таблКонтактныеДанныеКлиентов8[[#This Row],[Дата подачи документов]])","v":0}]
[{"$f":"IF(TODAY()-таблКонтактныеДанныеКлиентов8[[#This Row],[Дата подачи документов]]=1,\"Скрыть\",таблКонтактныеДанныеКлиентов8[[#This Row],[Дата подачи документов]])","v":0}]
[{"$f":"IF(TODAY()-таблКонтактныеДанныеКлиентов8[[#This Row],[Дата подачи документов]]=1,\"Скрыть\",таблКонтактныеДанныеКлиентов8[[#This Row],[Дата подачи документов]])","v":0}]
[{"$f":"IF(TODAY()-таблКонтактныеДанныеКлиентов8[[#This Row],[Дата подачи документов]]=1,\"Скрыть\",таблКонтактныеДанныеКлиентов8[[#This Row],[Дата подачи документов]])","v":0}]
[{"$f":"IF(TODAY()-таблКонтактныеДанныеКлиентов8[[#This Row],[Дата подачи документов]]=1,\"Скрыть\",таблКонтактныеДанныеКлиентов8[[#This Row],[Дата подачи документов]])","v":0}]
[{"$f":"IF(TODAY()-таблКонтактныеДанныеКлиентов8[[#This Row],[Дата подачи документов]]=1,\"Скрыть\",таблКонтактныеДанныеКлиентов8[[#This Row],[Дата подачи документов]])","v":0}]
[{"$f":"IF(TODAY()-таблКонтактныеДанныеКлиентов8[[#This Row],[Дата подачи документов]]=1,\"Скрыть\",таблКонтактныеДанныеКлиентов8[[#This Row],[Дата подачи документов]])","v":0}]
[{"$f":"IF(TODAY()-таблКонтактныеДанныеКлиентов8[[#This Row],[Дата подачи документов]]=1,\"Скрыть\",таблКонтактныеДанныеКлиентов8[[#This Row],[Дата подачи документов]])","v":0}]
[{"$f":"IF(TODAY()-таблКонтактныеДанныеКлиентов8[[#This Row],[Дата подачи документов]]=1,\"Скрыть\",таблКонтактныеДанныеКлиентов8[[#This Row],[Дата подачи документов]])","v":0}]
[{"$f":"IF(TODAY()-таблКонтактныеДанныеКлиентов8[[#This Row],[Дата подачи документов]]=1,\"Скрыть\",таблКонтактныеДанныеКлиентов8[[#This Row],[Дата подачи документов]])","v":0}]
[{"$f":"IF(TODAY()-таблКонтактныеДанныеКлиентов8[[#This Row],[Дата подачи документов]]=1,\"Скрыть\",таблКонтактныеДанныеКлиентов8[[#This Row],[Дата подачи документов]])","v":0}]
[{"$f":"IF(TODAY()-таблКонтактныеДанныеКлиентов8[[#This Row],[Дата подачи документов]]=1,\"Скрыть\",таблКонтактныеДанныеКлиентов8[[#This Row],[Дата подачи документов]])","v":0}]
[{"$f":"IF(TODAY()-таблКонтактныеДанныеКлиентов8[[#This Row],[Дата подачи документов]]=1,\"Скрыть\",таблКонтактныеДанныеКлиентов8[[#This Row],[Дата подачи документов]])","v":0}]
[{"$f":"IF(TODAY()-таблКонтактныеДанныеКлиентов8[[#This Row],[Дата подачи документов]]=1,\"Скрыть\",таблКонтактныеДанныеКлиентов8[[#This Row],[Дата подачи документов]])","v":0}]
[{"$f":"IF(TODAY()-таблКонтактныеДанныеКлиентов8[[#This Row],[Дата подачи документов]]=1,\"Скрыть\",таблКонтактныеДанныеКлиентов8[[#This Row],[Дата подачи документов]])","v":0}]
[{"$f":"IF(TODAY()-таблКонтактныеДанныеКлиентов8[[#This Row],[Дата подачи документов]]=1,\"Скрыть\",таблКонтактныеДанныеКлиентов8[[#This Row],[Дата подачи документов]])","v":0}]
[{"$f":"IF(TODAY()-таблКонтактныеДанныеКлиентов8[[#This Row],[Дата подачи документов]]=1,\"Скрыть\",таблКонтактныеДанныеКлиентов8[[#This Row],[Дата подачи документов]])","v":0}]
[{"$f":"IF(TODAY()-таблКонтактныеДанныеКлиентов8[[#This Row],[Дата подачи документов]]=1,\"Скрыть\",таблКонтактныеДанныеКлиентов8[[#This Row],[Дата подачи документов]])","v":0}]
[{"$f":"IF(TODAY()-таблКонтактныеДанныеКлиентов8[[#This Row],[Дата подачи документов]]=1,\"Скрыть\",таблКонтактныеДанныеКлиентов8[[#This Row],[Дата подачи документов]])","v":0}]
[{"$f":"IF(TODAY()-таблКонтактныеДанныеКлиентов8[[#This Row],[Дата подачи документов]]=1,\"Скрыть\",таблКонтактныеДанныеКлиентов8[[#This Row],[Дата подачи документов]])","v":0}]
[{"$f":"IF(TODAY()-таблКонтактныеДанныеКлиентов8[[#This Row],[Дата подачи документов]]=1,\"Скрыть\",таблКонтактныеДанныеКлиентов8[[#This Row],[Дата подачи документов]])","v":0}]
[{"$f":"IF(TODAY()-таблКонтактныеДанныеКлиентов8[[#This Row],[Дата подачи документов]]=1,\"Скрыть\",таблКонтактныеДанныеКлиентов8[[#This Row],[Дата подачи документов]])","v":0}]
[{"$f":"IF(TODAY()-таблКонтактныеДанныеКлиентов8[[#This Row],[Дата подачи документов]]=1,\"Скрыть\",таблКонтактныеДанныеКлиентов8[[#This Row],[Дата подачи документов]])","v":0}]
[{"$f":"IF(TODAY()-таблКонтактныеДанныеКлиентов8[[#This Row],[Дата подачи документов]]=1,\"Скрыть\",таблКонтактныеДанныеКлиентов8[[#This Row],[Дата подачи документов]])","v":0}]
[{"$f":"IF(TODAY()-таблКонтактныеДанныеКлиентов8[[#This Row],[Дата подачи документов]]=1,\"Скрыть\",таблКонтактныеДанныеКлиентов8[[#This Row],[Дата подачи документов]])","v":0}]

{"sheet":"Даты закупок","index":1,"n_rows":6,"n_cols":5,"rows_kept":6,"cut":false,"hidden":false,"merged":[]}
[]
[]
[null,"Дата проведения тендера"]
[]
[]
[null,"Дата","Время","Название организации заказчика","Дополнительные примечания"]